Workbook

Sheet Коммунальные платежи
A1: Месяц | B1: Всего | I1: На кого начислено на текущий месяц | P1: Тарифы | U1: Показания счетчиков | Y1: Начисления за расчетный период по услугам / взносам | AW1: Начислено | BB1: Расход | BK1: ЖКУ | BM1: Сумма общ. раздел. на проживающих | BT1: Сумма Вова | CB1: Сумма Аня | CJ1: Сумма Вика | CR1: Сумма Олег | CZ1: Сумма Алекс.В | DH1: Сумма Нат.М. | DR1: Сумма Миша | EC1: Вова | ED1: Аня | EE1: Вика | EF1: Олег | EG1: Алекс.В | EH1: Нат.М | EI1: Миша
B2: Вова | C2: Аня | D2: Вика | E2: Олег | F2: Алекс.В. | G2: Нат.М. | H2: Миша | I2: Вова | J2: Аня | K2: Вика | L2: Олег | M2: Алекс.В | N2: Нат.М | O2: Миша | P2: Хол.вода | Q2: Гор.вода | R2: Водоотв. | S2: Газ | T2: Эл-во | U2: Хол.вода | V2: Гор.вода | W2: Газ | X2: Эл-во | Y2: Взнос на капитальный ремонт | Z2: Электроснабжение | AA2: Обращение с ТКО | AB2: Водоотведение | AC2: Горячее водоснабжение | AD2: Отопление | AE2: Холодное водоснабжение | AF2: Домофон | AG2: Очистка мусоропроводов | AH2: Сод. и тек. рем. внутр. систем газосн. | AI2: Содержание и текущий ремонт лифтов | AJ2: Содержание общего имущества в МКД | AK2: Текущий ремонт общего имущества в МКД | AL2: Уборка и сан. очистка земельного участка | AM2: Уборка лестничных клеток | AN2: Управление многоквартирным домом | AO2: Горячее водоснабжение СОИ | AP2: Отведение сточных вод ГВС СОИ | AQ2: Отведение сточных вод ХВС СОИ | AR2: Холодное водоснабжение СОИ | AS2: Электроэнергия день СОИ | AT2: Электроэнергия ночь СОИ | AU2: Перерасчёт (-) | AV2: Перерасчёт (+) | AW2: Газ | AX2: Хоз.расходы | AY2: Доп. расходы | AZ2: Ростелеком | BA2: Дом.ру | BB2: Хол.вода | BC2: Гор.вода | BD2: Водоотв. | BE2: Газ | BF2: Эл-во | BG2: Хол.вода | BH2: Гор.вода | BI2: Водоотв. | BJ2: Эл-во | BK2: ЖКУ | BL2: ЖКУ минус вода минус перерасчёт | BM2: Вода всего /5 | BN2: Ком.услуги +отопление /5 | BO2: Газ /5 | BP2: Твёрдые отходы+домофон /5 | BQ2: Кап.рем. /5 | BR2: Эл-во /5 | BS2: Хоз.расх. /5 | BT2: Вода | BU2: Ком.услуги | BV2: Газ | BW2: Твёрдые отходы+домофон | BX2: Кап.рем. | BY2: Эл-во | BZ2: Хоз.расходы | CA2: Доп.расходы | CB2: Вода | CC2: Ком.услуги | CD2: Газ | CE2: Твёрдые отходы+домофон | CF2: Кап.рем. | CG2: Эл-во | CH2: Хоз.расходы | CI2: Доп.расходы | CJ2: Вода | CK2: Ком.услуги | CL2: Газ | CM2: Твёрдые отходы+домофон | CN2: Кап.рем. | CO2: Эл-во | CP2: Хоз.расходы | CQ2: Доп.расходы | CR2: Вода | CS2: Ком.услуги | CT2: Газ | CU2: Твёрдые отходы+домофон | CV2: Кап.ремонт | CW2: Эл-во | CX2: Хоз.расходы | CY2: Доп.расходы | CZ2: Вода | DA2: Ком.услуги | DB2: Газ | DC2: Твёрдые отходы+домофон | DD2: Кап.рем. | DE2: Эл-во | DF2: Хоз.расходы | DG2: Доп.расходы | DH2: Вода | DI2: Ком.услуги | DJ2: Газ | DK2: Твёрдые отходы+домофон | DL2: Кап.рем. | DM2: Эл-во | DN2: Хоз.расходы | DO2: Доп.расходы | DP2: Ростелеком | DQ2: Dom.ru TV | DR2: Вода | DS2: Ком.услуги | DT2: Газ | DU2: Твёрдые отходы+домофон | DV2: Кап.рем. | DW2: Эл-во | DX2: Хоз.расходы | DY2: Доп.расходы | DZ2: Ростелеком | EA2: Dom.ru TV
A3: 2023-04-01 | P3: 36.54 | Q3: 126.68 | R3: 36.54 | S3: 7.55993 | T3: 5.7 | U3: 206 | V3: 333 | W3: 1582 | X3: 10830 | AW3: 69.2 | AX3: 216.08 | AY3: 216.08 | AZ3: 600 | BA3: 440 | BB3: =IF(U3<>0,U3-#REF!,0) ->  | BC3: =IF(V3<>0,V3-#REF!,0) ->  | BD3: =SUM(BB3+BC3) ->  | BE3: =IF(W3<>0,W3-#REF!,0) ->  | BF3: =IF(X3<>0,X3-#REF!,0) ->  | BG3: =SUM(BB3*P3) ->  | BJ3: =SUM(T3*BF3) -> 
A4: 2023-05-01 | P4: 36.54 | Q4: 126.68 | R4: 36.54 | S4: 7.55993 | T4: 5.7 | U4: 209 | V4: 335 | W4: 1595 | X4: 10950 | AW4: 98.28 | AX4: 1224 | AY4: 1224 | AZ4: 600 | BA4: 440 | BB4: =IF(U4<>0,U4-U3,0) -> 3 | BC4: =IF(V4<>0,V4-V3,0) -> 2 | BD4: =SUM(BB4+BC4) -> 5 | BE4: =IF(W4<>0,W4-W3,0) -> 13 | BF4: =IF(X4<>0,X4-X3,0) -> 120 | BG4: 109.62 | BH4: 253.36 | BI4: 182.7 | BJ4: =SUM(T4*BF4) -> 684
A5: 2023-06-01 | B5: =I5 -> 855.352 | C5: =J5 -> 370.374 | D5: =K5 -> 370.374 | E5: =L5 -> 484.978 | F5: =M5 -> 484.978 | G5: =N5 -> 1375.352 | H5: =O5 -> 1375.352 | I5: =IF(EC5,SUM(BT5+BU5+BV5+BW5+BX5+BY5+BZ5),SUM(BU5+BX5)) -> 855.352 | J5: =IF(ED5,SUM(CB5+CC5+CD5+CE5+CF5+CG5+CH5),SUM(CC5+CF5)) -> 370.374 | K5: =IF(EE5,SUM(CJ5+CK5+CL5+CM5+CN5+CO5+CP5),0) -> 370.374 | L5: =IF(EF5,SUM(CR5+CS5+CT5+CU5+CV5+CW5+CX5),SUM(CS5+CV5)) -> 484.978 | M5: =IF(EG5,SUM(CZ5+DA5+DB5+DC5+DD5+DE5),SUM(DA5+DD5)) -> 484.978 | N5: =IF(EH5,SUM(DH5+DI5+DJ5+DK5+DL5+DM5+DN5+DP5+DQ5),SUM(DI5+DL5)) -> 1375.352 | O5: =IF(EI5,SUM(DR5+DS5+DT5+DU5+DV5+DW5+DX5+DZ5+EA5),SUM(DS5+DV5)) -> 1375.352 | P5: 36.54 | Q5: 126.68 | R5: 36.54 | S5: 7.55993 | T5: 5.7 | U5: 212 | V5: 336 | W5: 1607 | X5: 11060 | Y5: 731.75 | Z5: 627 | AA5: 521.7 | AB5: 146.16 | AC5: 126.68 | AD5: 0 | AE5: 109.62 | AF5: 50 | AG5: 101.73 | AH5: 58.38 | AI5: 286.69 | AJ5: 347.38 | AK5: 369.92 | AL5: 134.67 | AM5: 128.89 | AN5: 228.31 | AO5: 29.48 | AP5: 8.5 | AQ5: 13.76 | AR5: 13.76 | AS5: 39.53 | AT5: 13.14 | AU5: 81 | AW5: 90.72 | AX5: 179.99 | AY5: 4350 | AZ5: 600 | BA5: 440 | BB5: =IF(U5<>0,U5-U4,0) -> 3 | BC5: =IF(V5<>0,V5-V4,0) -> 1 | BD5: =SUM(BB5+BC5) -> 4 | BE5: =IF(W5<>0,W5-W4,0) -> 12 | BF5: =IF(X5<>0,X5-X4,0) -> 110 | BG5: 109.62 | BH5: 126.68 | BI5: 146.16 | BJ5: =SUM(T5*BF5) -> 627 | BK5: =(Y5+Z5+AA5+AB5+AC5+AD5+AE5+AF5+AG5+AH5+AI5+AJ5+AK5+AL5+AM5+AN5+AO5+AP5+AQ5+AR5+AS5+AT5-AU5+AV5) -> 4006.05 | BL5: =(BK5-Y5-Z5-AA5-AB5-AC5-AD5-AE5-AF5) -> 1693.14 | BM5: =SUM(BG5+BH5+BI5)/5 -> 76.492 | BN5: =(BL5/5) -> 338.628 | BO5: =SUM(AW5/5) -> 18.144 | BP5: =(AA5+AF5)/5 -> 114.34 | BQ5: =SUM(Y5/5) -> 146.35 | BR5: =SUM(Z5/5) -> 125.4 | BS5: =(AX5/5) -> 35.998 | BT5: =(BM5) -> 76.492 | BU5: 338.628 | BV5: 18.144 | BW5: 114.34 | BX5: 146.35 | BY5: 125.4 | BZ5: =(BS5) -> 35.998 | CA5: =(AY5/4) -> 1087.5 | CB5: =SUM(BM5) -> 76.492 | CD5: =(BO5) -> 18.144 | CE5: =(BP5) -> 114.34 | CG5: =(BR5) -> 125.4 | CH5: =(AX5/5) -> 35.998 | CI5: =(AY5/4) -> 1087.5 | CJ5: =SUM(BM5) -> 76.492 | CL5: =(BO5) -> 18.144 | CM5: =(BP5) -> 114.34 | CO5: =(BR5) -> 125.4 | CP5: =(AX5/5) -> 35.998 | CS5: =(BN5) -> 338.628 | CV5: =(BQ5) -> 146.35 | DA5: =(BN5) -> 338.628 | DD5: =(BQ5) -> 146.35 | DH5: =(BM5) -> 76.492 | DI5: 338.628 | DJ5: 18.144 | DK5: 114.34 | DL5: 146.35 | DM5: 125.4 | DN5: =(AX5/5) -> 35.998 | DO5: =(AY5/4) -> 1087.5 | DP5: =(AZ5/2) -> 300 | DQ5: =SUM(BA5/2) -> 220 | DR5: =(BM5) -> 76.492 | DS5: 338.628 | DT5: 18.144 | DU5: 114.34 | DV5: 146.35 | DW5: 125.4 | DX5: =(AX5/5) -> 35.998 | DY5: =(AY5/4) -> 1087.5 | DZ5: =SUM(AZ5/2) -> 300 | EA5: =SUM(BA5/2) -> 220 | EC5: TRUE | ED5: TRUE | EE5: TRUE | EF5: TRUE | EG5: TRUE | EH5: TRUE | EI5: TRUE
